Cogmind - Beta 15 @@@ ROGUE MODE // 2025.05.24 @ 13:41:55 Player: Man of Plasma Result: Self-destructed Performance ------------- Evolutions (2) 1000 Regions Visited (5) 1000 Robots Destroyed (23) 115 Value Destroyed (595) 595 Prototype IDs (0) 0 Alien Tech Used (0) 0 Bonus (200) 200 TOTAL SCORE: 2910 Bonus ------- Entered Garrisons 200 Cogmind --------- Core Integrity 504/550 Matter 132/300 Energy 100/100 System Corruption 0% Temperature Cool (0) Movement Core (50) Location -8/Garrison Parts ------- > --- POWER (1) -------- (None) > --- PROPULSION (4) --- (None) > --- UTILITY (4) ------ Terrain Scan Processor > --- WEAPON (2) ------- (None) > --- INVENTORY (5) ---- Ion Engine Aluminum Leg Aluminum Leg Mining Laser Peak State ------------ > --- POWER ------------ Light Nuclear Core > --- PROPULSION ------- Light Treads Light Treads > --- UTILITY ---------- Large Storage Unit Terrain Scanner > --- WEAPON ----------- EM Pulse Gun Small Laser > --- INVENTORY -------- Ion Engine Ion Engine Light Ion Engine Light Treads Aluminum Leg Aluminum Leg Large Storage Unit EM Pulse Gun Light Assault Rifle Grenade Launcher Mining Laser [Rating: 10] Favorites ----------- Power Light Ion Engine Engine Light Ion Engine Power Core Light Nuclear Core Propulsion Light Treads Treads Light Treads Utility Terrain Scanner Device Terrain Scanner Storage Large Storage Unit Processor Terrain Scan Processor Weapon Beam Rifle Energy Gun Beam Rifle Launcher Grenade Launcher Build | -11 -10 -10 -8 -8 -8 ------- Run | Yrd Mat Sub Mat Sto Gar Slots Evolved 4 | . . . 4 . . Power . | . . . . . . Propulsion 2 | . . . 2 . . Utility 2 | . . . 2 . . Weapon . | . . . . . . Parts Attached 16 | 4 8 4 . . . Power 3 | 1 2 . . . . Engine 2 | 1 1 . . . . Core 1 | . 1 . . . . Reactor . | . . . . . . Propulsion 3 | 2 . 1 . . . Treads 3 | 2 . 1 . . . Leg . | . . . . . . Wheel . | . . . . . . Hover . | . . . . . . Flight . | . . . . . . Utility 4 | 1 2 1 . . . Device 1 | . 1 . . . . Storage 2 | 1 1 . . . . Processor 1 | . . 1 . . . Hackware . | . . . . . . Protection . | . . . . . . Artifact . | . . . . . . Weapon 6 | . 4 2 . . . Energy Gun 5 | . 4 1 . . . Energy Cannon . | . . . . . . Ballistic Gun . | . . . . . . Ballistic Cannon . | . . . . . . Launcher 1 | . . 1 . . . Special Weapon . | . . . . . . Impact Weapon . | . . . . . . Slashing Weapon . | . . . . . . Piercing Weapon . | . . . . . . Special Melee Weapon . | . . . . . . Unidentified Prototypes . | . . . . . . Corrupted Parts 1 | . . 1 . . . System Corruption 4 | . . 4 . . . Parts Lost 9 | . 2 2 4 . 1 Power 1 | . . . 1 . . Propulsion 3 | . 1 1 1 . . Utility 1 | . . . . . 1 Weapon 4 | . 1 1 2 . . Highest Loss Streak 5 | . 2 2 4 . 5 To Critical Strikes . | . . . . . . Average Backups 7 | 3 10 4 4 4 4 Power 1 | . 2 1 1 1 1 Propulsion 2 | 1 3 2 2 2 2 Utility . | . 1 . . . . Weapon 2 | 1 3 1 1 1 1 Tool/Special . | . . . . . . Unused Backups 8 | . . 4 . . 4 Power 1 | . . . . . 1 Propulsion 4 | . . 2 . . 2 Utility 1 | . . 1 . . . Weapon 2 | . . 1 . . 1 Tool/Special . | . . . . . . Average Slot Usage (%) 81 | . 86 80 51 18 18 Engine 8 | . 5 11 7 . . Core 4 | . 8 2 . . . Treads 19 | . 21 19 7 . . Device 11 | . 8 14 9 9 9 Storage 6 | . 15 . . . . Processor 8 | . . 13 9 9 9 Energy Gun 19 | . 24 16 9 . . Launcher 1 | . . 2 9 . . Peak Build Rating 10 | 4 10 10 8 3 3 Average Rating 8 | 3 8 8 7 3 2 On Entrance 4 | . 4 10 8 3 3 Naked Turns . | . . . . . . Heaviest Build 31 | 10 31 29 10 1 1 Greatest Support 40 | 40 40 40 20 3 3 Greatest Overweight (x) 2 | 1 1 . 2 . . Average Overweight (x) . | . . . . . . Largest Inventory Capacity 15 | 8 15 15 5 5 5 Average Capacity 8 | 7 13 5 5 5 5 Most Carried 14 | 6 14 14 4 4 4 Average Carried 7 | 3 10 4 4 4 4 Final Capacity 15 | 8 15 5 5 5 5 Final Carried 14 | 6 14 4 4 4 4 Class Distribution -------------------- 100% | Mutant Dominant Class ---------------- Mutant | -10/Materials Mutant | -10/Subcaves Mutant | -8/Materials Mutant | -8/Storage Mutant | -8/Garrison Resources | -11 -10 -10 -8 -8 -8 ----------- Run | Yrd Mat Sub Mat Sto Gar Matter Collected 410 | 240 85 67 18 . . Remotely . | . . . . . . Salvage Created 713 | . 528 142 43 . . Parts 50 | . 36 13 1 . . Haulers Intercepted 1 | . 1 . . . . Recyclers Shooed . | . . . . . . Parts Field Recycled . | . . . . . . Retrieved Matter . | . . . . . . Parts Self-Destructed 12 | . . 12 . . . Prevented . | . . . . . . Kills | -11 -10 -10 -8 -8 -8 ------- Run | Yrd Mat Sub Mat Sto Gar Combat Hostiles Destroyed 20 | . 12 7 1 . . Guns 16 | . 11 5 . . . AOE 4 | . 1 2 1 . . Classes Destroyed 7 | . 5 2 . . . Builder 1 | . 1 . . . . Hauler 1 | . 1 . . . . Watcher 1 | . 1 . . . . Swarmer 7 | . 3 4 . . . Grunt 9 | . 9 . . . . Sentry 2 | . . 1 1 . . Subdweller 2 | . . 2 . . . Best Kill Streak 9 | . 9 4 1 . . Combat Bots Only 7 | . 7 4 1 . . Max Kills in Single Turn 2 | . 2 2 1 . . Gunslinging 1 | . . 1 . . . Exploded 1 | . 1 1 1 . . Melee . | . . . . . . Uniques/NPCs Destroyed . | . . . . . . Combat | -11 -10 -10 -8 -8 -8 -------- Run | Yrd Mat Sub Mat Sto Gar Hostile Shots Fired 116 | . 67 29 10 . 10 Missed 34 | . 20 8 3 . 3 Hits 82 | . 47 21 7 . 7 Projectile 82 | . 47 21 7 . 7 Critical Strikes 1 | . . 1 . . . Damage Taken 1023 | . 571 241 174 . 37 Core 143 | . 88 9 15 . 31 Absorbed by Shields 16 | . . . . . 16 Core Remaining (%) 80 | 100 . 61 . . . Volleys Fired 50 | . 36 12 2 . . Largest 2 | . 2 2 2 . . Hottest 121 | . 105 121 86 . . Shots Fired 96 | . 67 25 4 . . Gun 89 | . 67 20 2 . . Cannon . | . . . . . . Launcher 7 | . . 5 2 . . Special . | . . . . . . Kinetic . | . . . . . . Thermal 50 | . 28 20 2 . . Explosive 7 | . . 5 2 . . Electromagnetic 39 | . 39 . . . . Robot Hit Streak 11 | . 9 11 6 . . Robot Miss Streak 3 | . 3 2 . . . Penetration Max . | . . . . . . Secondary Targets 2 | . 1 1 . . . Max Gunslinging Chain 1 | . 1 1 . . . Shots Hit Robots 66 | . 46 16 4 . . Core Hits 38 | . 24 11 3 . . Critical Kills . | . . . . . . Critical Parts Destroyed . | . . . . . . Critical Strikes 1 | . . 1 . . . Burn 1 | . . 1 . . . Melee Attacks . | . . . . . . Impact . | . . . . . . Slashing . | . . . . . . Piercing . | . . . . . . Sneak Attacks . | . . . . . . Combat Hostiles . | . . . . . . Follow-up Attacks . | . . . . . . Damage Inflicted 1100 | . 717 315 68 . . Guns 842 | . 604 209 29 . . Cannons . | . . . . . . Explosions 255 | . 110 106 39 . . Melee . | . . . . . . Ramming 3 | . 3 . . . . Kinetic . | . . . . . . Thermal 578 | . 340 209 29 . . Explosive 145 | . . 106 39 . . Electromagnetic 374 | . 374 . . . . Impact . | . . . . . . Slashing . | . . . . . . Piercing . | . . . . . . Highest Corruption 6 | . 2 6 . . . Average Corruption 4 | . 2 6 . . . Corruption Purged . | . . . . . . Corruption Blocked . | . . . . . . Effects 65 | . 11 54 . . . Message Errors 16 | . 3 13 . . . Matter Fused 19 | . . 19 . . . Heat Flow Errors 9 | . 4 5 . . . Energy Discharges 9 | . 1 8 . . . Parts Rejected 1 | . 1 . . . . Parts Fused 3 | . . 3 . . . Data Loss (minor) 3 | . 2 1 . . . Data Loss (major) 3 | . . 3 . . . Misfires 2 | . . 2 . . . Overload Shots . | . . . . . . Overflow Damage 24 | . 13 . 11 . . Projectiles . | . . . . . . Explosions 24 | . 13 . 11 . . Melee . | . . . . . . Knockbacks . | . . . . . . Impact . | . . . . . . Kinetic . | . . . . . . Secondary . | . . . . . . Self-Inflicted Damage 131 | . 57 . 74 . . Shots 4 | . 2 . 2 . . Rammed 1 | . 1 . . . . Targets Rammed 2 | . 2 . . . . Kicked . | . . . . . . Crushed 1 | . 1 . . . . Highest Temperature 261 | . 261 243 15 . . Average Temperature 62 | . 62 75 10 . . Received Heat Transfer 315 | . 222 57 36 . . Siege Activations . | . . . . . . Martial Activations . | . . . . . . Shielding Activations . | . . . . . . Robots Disrupted . | . . . . . . Combat Hostiles . | . . . . . . Robots Corrupted . | . . . . . . Combat Hostiles . | . . . . . . Parts Fried . | . . . . . . Impact Corruptions . | . . . . . . Robots Melted . | . . . . . . Combat Hostiles . | . . . . . . Parts Melted 2 | . 1 1 . . . Heat Transferred 1340 | . 674 592 74 . . Parts Sabotaged . | . . . . . . Parts Stolen . | . . . . . . Parts Stripped . | . . . . . . Power Chain Reactions 2 | . 2 . . . . Alert | -11 -10 -10 -8 -8 -8 ------- Run | Yrd Mat Sub Mat Sto Gar Maximum Alert Level . | . . . . . . Low Security (%) 100 | 100 100 . 100 100 100 Level 1 . | . . . . . . Level 2 . | . . . . . . Level 3 . | . . . . . . Level 4 . | . . . . . . Level 5 . | . . . . . . High Security . | . . . . . . Max Security . | . . . . . . Peak Influence 147 | . 147 . 39 11 7 Initial 11 | . . . . 11 7 Average 23 | . 26 . 2 11 5 Influence Increases 491 | . 312 130 49 . . Destroy 0b10 Robot/C 360 | . 240 100 20 . . Destroy 0b10 Robot/NC 15 | . 15 . . . . Destroy Leader 54 | . 44 . 10 . . Destroy Structure 32 | . 13 . 19 . . Lose Combat Pursuer 30 | . . 30 . . . Influence Decreases 491 | . 312 130 20 18 11 Entered New Map 22 | . . . . 18 4 Time Decay 438 | . 308 130 . . . Lost Part 31 | . 4 . 20 . 7 Squads Dispatched 2 | . 1 . 1 . . Investigation . | . . . . . . Extermination . | . . . . . . Reinforcement 2 | . 1 . 1 . . Assault . | . . . . . . Garrison . | . . . . . . Intercept . | . . . . . . Searches Triggered . | . . . . . . Construction Impeded . | . . . . . . Haulers Reinforced . | . . . . . . Active Scanning Responses . | . . . . . . Cargo Convoy Interrupts . | . . . . . . Stealth | -11 -10 -10 -8 -8 -8 --------- Run | Yrd Mat Sub Mat Sto Gar Distress Signals . | . . . . . . Communications Jammed . | . . . . . . Distress Signals . | . . . . . . Times Spotted 42 | . 23 11 5 . 3 Peak Tracking Total 8 | . 8 4 5 . 3 Tactical Retreats 1 | . . 1 . . . Traps | -11 -10 -10 -8 -8 -8 ------- Run | Yrd Mat Sub Mat Sto Gar Traps Triggered 2 | . 1 . . . 1 Indirectly . | . . . . . . Trap Hack Attempts . | . . . . . . Triggered . | . . . . . . Disarmed . | . . . . . . Reprogrammed . | . . . . . . Reused . | . . . . . . Traps Extracted . | . . . . . . Installed . | . . . . . . Triggered . | . . . . . . Machines | -11 -10 -10 -8 -8 -8 ---------- Run | Yrd Mat Sub Mat Sto Gar Machines Disabled . | . . . . . . Max in Single Turn . | . . . . . . Machines Repaired . | . . . . . . Machines Dismantled . | . . . . . . Machines Sabotaged . | . . . . . . Overloaded Fab Kills . | . . . . . . Hacking | -11 -10 -10 -8 -8 -8 --------- Run | Yrd Mat Sub Mat Sto Gar Machines Accessed 2 | . 1 . . 1 . Terminals 1 | . 1 . . . . Fabricators . | . . . . . . Repair Stations . | . . . . . . Recycling Units . | . . . . . . Scanalyzers . | . . . . . . Garrison Access 1 | . . . . 1 . Total Hacks 2 | . 1 . . 1 . Successful 2 | . 1 . . 1 . Failed . | . . . . . . Catastrophic . | . . . . . . Database Lockouts . | . . . . . . Manual . | . . . . . . Terminals 1 | . 1 . . . . Fabricators . | . . . . . . Repair Stations . | . . . . . . Recycling Units . | . . . . . . Scanalyzers . | . . . . . . Garrison Access 1 | . . . . 1 . Terminal Hacks 1 | . 1 . . . . Locate Traps 1 | . 1 . . . . Fabricator Hacks . | . . . . . . Repair Station Hacks . | . . . . . . Recycling Unit Hacks . | . . . . . . Scanalyzer . | . . . . . . Garrison Access Hacks 1 | . . . . 1 . Unlock Access 1 | . . . . 1 . Unauthorized Hacks . | . . . . . . Terminals . | . . . . . . Fabricators . | . . . . . . Repair Stations . | . . . . . . Recycling Units . | . . . . . . Scanalyzers . | . . . . . . Garrison Access . | . . . . . . Data Cores Recovered . | . . . . . . Used . | . . . . . . Hacking Detections 1 | . . . . 1 . Full Trace Events . | . . . . . . Feedback Events . | . . . . . . Feedback Blocked . | . . . . . . Robot Schematics Acquired . | . . . . . . Robots Built . | . . . . . . Authchips . | . . . . . . Time . | . . . . . . Total Robot Build Rating . | . . . . . . Part Schematics Acquired . | . . . . . . Parts Built . | . . . . . . Authchips . | . . . . . . Time . | . . . . . . Total Part Build Rating . | . . . . . . Parts Repaired . | . . . . . . Time . | . . . . . . Parts Recycled . | . . . . . . Recycled Matter . | . . . . . . Retrieved Matter . | . . . . . . Retrieved Components . | . . . . . . Parts Scanalyzed . | . . . . . . Part Schematics Acquired . | . . . . . . Parts Damaged . | . . . . . . Bothacking | -11 -10 -10 -8 -8 -8 ------------ Run | Yrd Mat Sub Mat Sto Gar Used RIF Installer . | . . . . . . Robots Hacked . | . . . . . . Non-combat . | . . . . . . Combat . | . . . . . . Robot Hacks Applied . | . . . . . . Relay Couplers Released . | . . . . . . Fabnet Peak Effective % . | . . . . . . Robots Rewired . | . . . . . . Allies Hacked . | . . . . . . Hacks Repelled . | . . . . . . Allies | -11 -10 -10 -8 -8 -8 -------- Run | Yrd Mat Sub Mat Sto Gar Total Allies . | . . . . . . Largest Group . | . . . . . . Highest-Rated Group . | . . . . . . Highest-Rated Ally . | . . . . . . Total Orders . | . . . . . . Ally Attacks . | . . . . . . Total Damage . | . . . . . . Kills . | . . . . . . Allies Corrupted . | . . . . . . Allies Melted . | . . . . . . Intel | -11 -10 -10 -8 -8 -8 ------- Run | Yrd Mat Sub Mat Sto Gar Active Infowar (turns) 2841 | . 842 1916 56 13 14 Terrain 2841 | . 842 1916 56 13 14 Robot Analysis Total . | . . . . . . Derelict Logs Recovered 1 | . . 1 . . . Drone Launches . | . . . . . . Drone Recoveries . | . . . . . . Exploration | -11 -10 -10 -8 -8 -8 ------------- Run | Yrd Mat Sub Mat Sto Gar Turns Passed 3397 | 91 1302 1916 56 13 19 Spaces Moved 775 | 52 416 237 32 25 13 Core 44 | 4 . . 2 25 13 Treads 731 | 48 416 237 30 . . Legs . | . . . . . . Wheels . | . . . . . . Hover . | . . . . . . Flight . | . . . . . . Fastest Speed 50 | 50 160 160 50 50 50 Average Speed 166 | 153 183 160 156 50 50 Slowest Speed 240 | 160 240 160 160 50 50 Overloaded Moves . | . . . . . . Propulsion Burnouts . | . . . . . . Robots Hopped . | . . . . . . Potential Cave-ins . | . . . . . . Cave-ins Triggered . | . . . . . . Exploration Rate (%) 20 | 4 79 19 9 8 6 Regions Visited 5 Branch Regions 2 Pre-discovered Areas . | . . . . . . Known Exits Taken 1 | . . . . 1 . Unknown Exits Taken 4 | 1 1 1 1 . . Scrap Searched . | . . . . . . Spaces Dug . | . . . . . . Terrain Destroyed 50 | . 13 18 19 . . Melee . | . . . . . . Projectile . | . . . . . . AOE 50 | . 13 18 19 . . Terrain Rammed . | . . . . . . Walls Destroyed . | . . . . . . Machines Disabled . | . . . . . . Actions | -11 -10 -10 -8 -8 -8 --------- Run | Yrd Mat Sub Mat Sto Gar Total 2781 | 61 887 1751 33 24 25 Wait 1904 | . 415 1489 . . . Move 770 | 51 415 236 31 24 13 Hop . | . . . . . . Pick Up 20 | 6 10 4 . . . Fast Attach 6 | 4 1 1 . . . Attach 8 | . 4 4 . . . Detach 1 | . . 1 . . . Swap 6 | . 4 2 . . . Drop 2 | . . 2 . . . Fire 50 | . 36 12 2 . . Melee . | . . . . . . Ram . | . . . . . . Kick . | . . . . . . Crush 2 | . 2 . . . . Escape Stasis 12 | . . . . . 12 Rewire . | . . . . . . Trap . | . . . . . . Miscellaneous . | . . . . . . Route ------- -11/Scrapyard -10/Materials (discovered 5 exits: [*Mat x2] / [*Min x2] / [*Sub]) -10/Subcaves (discovered 2 exits: [*Mat] / [*Rec]) -8/Materials -8/Storage -8/Garrison History --------- Turn | Location | Event 33 | -11/Scrapyard | Discovered new exit (range 14) 92 | -11/Scrapyard | Entered Materials 284 | -10/Materials | Destroyed 7 combat bots 313 | -10/Materials | Build established: Mutant 325 | -10/Materials | Discovered new exit (range 15) 521 | -10/Materials | Discovered new exit (range 16) 927 | -10/Materials | Discovered new exit (range 16) 1097 | -10/Materials | Discovered new exit (range 9) 1387 | -10/Materials | Discovered new exit (range 3) 1394 | -10/Materials | Entered Subcaves 1438 | -10/Subcaves | Discovered new exit (range 8) 3220 | -10/Subcaves | Discovered new exit (range 7) 3310 | -10/Subcaves | Entered Materials 3310 | -8/Materials | Evolved 4 slots: Propulsion x2, Utility x2 3354 | -8/Materials | Discovered new exit (range 4) 3366 | -8/Materials | Entered Storage 3371 | -8/Storage | Identified exit to Garrison 3379 | -8/Storage | Entered Garrison 3393 | -8/Garrison | Triggered checkpoint 3398 | -8/Garrison | Self-destructed Last Messages --------------- GOAL=ESCAPE 03386_ Triggered Stasis Trap. 03386_ A bubble of rippling energy engulfs the area. 03386_ Field strength at 94. 03386_ Field strength at 88. 03387_ Field strength at 82. 03388_ Field strength at 76. 03389_ Field strength at 70. 03390_ Field strength at 64. 03391_ Field strength at 58. 03392_ Field strength at 52. 03393_ Beams of light sweep through the air. An alarm sounds. 03393_ Terrain Scanner destroyed. 03393_ Field strength at 41. 03394_ Field strength at 35. 03395_ Field strength at 23. 03396_ Field strength at 17. 03397_ Field strength at 8. Map ----- +----------------------------------------------------+ | ?????????????????????????????????????????????????? | | ?????????????????????????????????????????????????? | | ?????????????????????????????????????????????????? | | ?????????????????????????????????????????????????? | | ?????????????????????????????????????????????????? | | ?????????????????????????????????????????????????? | | ?????????????????????????????????????????????????? | | ?????????????????????????????????????????????????? | | ?????????????????????????????????????????????????? | | ?????????????????????????????????????????????????? | | ?????????????????????????????????????????????????? | | ?????????????????????????????????????????????????? | | ?????????????????????????????????????????????????? | | ?????????????????????????????????????????????????? | | ?????????????????????????????????????????????????? | | ?????????????????????????????????????????????????? | | ?????????????????????????????????????????????????? | | ?????????????????????????????????????????????????? | | ?????????????????????????????????????????????????? | | ?????????????????????????????????????????????????? | | ?????????????????????????????????????????????????? | | ????????????????????????????????????#####????????? | | ????????????????????????????????????# #????????? | | ?????????????## #################### #????????? | | ?????????? #????????? | | ?????????? @ #????????? | | ?????????? #????????? | | ?????????????############ #############????????? | | ????????????????????????#sss#????????????????????? | | ????????????????????????#####????????????????????? | | ?????????????????????????????????????????????????? | | ?????????????????????????????????????????????????? | | ?????????????????????????????????????????????????? | | ?????????????????????????????????????????????????? | | ?????????????????????????????????????????????????? | | ?????????????????????????????????????????????????? | | ?????????????????????????????????????????????????? | | ?????????????????????????????????????????????????? | | ?????????????????????????????????????????????????? | | ?????????????????????????????????????????????????? | | ?????????????????????????????????????????????????? | | ?????????????????????????????????????????????????? | | ?????????????????????????????????????????????????? | | ?????????????????????????????????????????????????? | | ?????????????????????????????????????????????????? | | ?????????????????????????????????????????????????? | | ?????????????????????????????????????????????????? | | ?????????????????????????????????????????????????? | | ?????????????????????????????????????????????????? | | ?????????????????????????????????????????????????? | +----------------------------------------------------+ Best States ------------- Heat Dissipation 31 Energy Generation 14 Energy Capacity 250 Matter Stores 300 Matter Capacity 300 Sight Range 16 Terrain Scan Range 14 Terrain Scan Density 85 Evasion (%) 50 Recoil Reduction 2 Item Schematics ----------------- None Robot Schematics ------------------ None Fabricated ------------ Nothing Repaired ---------- Nothing Alien Tech Used ----------------- None Achievements -------------- None Challenges ------------ None Game ------ Seed XenonLayeredScreen Manual? 0 Play Time 00:12:27 Cumulative 21.0 hours Start 2025.05.24 @ 13:29:35 End 2025.05.24 @ 13:41:55 Sessions 1 Manual Loads 0 Difficulty Rogue Special Mode None Game No. 35 Rogue 35 Adventurer 0 Explorer 0 Win Type - Total 0 Types 0/0/0/0/0/0/0/0/0/0 Lore% 21 Gallery% 27 Achievement% 23 Wizard Run 0 Options --------- Layout 1 ASCII 0 Keyboard 0 Movement Numpad Keybinds 0 Fullscreen 1 Font 24/Smallcaps Map View 50x35 Zoom Use 0% Tactical HUD 1 Map Filters NONE Filters NONE Steam 1 RUN: 8d5b288d-5ddc-4743-9ddf-471da5c8e8e5